fUSD/lending_fUSD_20241114
["ID","MTS","AMOUNT","RATE_DAILY","PERIOD"]
[342186185,1731570632517,-8172.4917004,9.993e-05,2]
[342186186,1731570632526,-8527.6660308,9.993e-05,2]
[342186187,1731570632536,-6325.46206531,9.993e-05,2]
[342186188,1731570632571,-2557.37829589,9.993e-05,2]
[342186189,1731570632580,-9238.0146916,9.993e-05,2]
[342186190,1731570632590,-2721.1558202,9.993e-05,2]
[342186191,1731570632600,-2839.4165333,9.993e-05,2]
[342186192,1731570632609,-2957.6772465,9.993e-05,2]
[342186193,1731570632619,-3075.9379596,9.993e-05,2]
[342186194,1731570632638,-150.47407309,9.999e-05,2]
[342186195,1731570632648,-2163.0,9.999e-05,2]
[342186196,1731570632658,-257.0,9.999e-05,2]
[342186198,1731570632668,-102279.47228823,0.0001,2]
[342186199,1731570632685,-722664.00000004,0.0001,2]
[342186203,1731570638259,-10986.93958197,0.0001,2]
[342186204,1731570638270,-1978.87395376,0.0001,2]
[342186205,1731570638281,-2726.69029654,0.0001,2]
[342186206,1731570638293,-89932.96962083,0.0001,2]
[342186207,1731570638304,-27624357.6408949,0.0001,2]
[342186209,1731570638658,-357.95902549,0.0001,2]
[342186210,1731570638669,-42198.29178435,0.0001,2]
[342186211,1731570638680,-897.33,0.0001,2]
[342186323,1731570641046,-195814.96501571,0.0001,2]
[342186324,1731570641081,-526.27,0.0001,2]
[342186325,1731570641092,-2818.57812222,0.0001,2]
[342186326,1731570641103,-1113.00679852,0.0001,2]
[342186330,1731570643281,-993.56644484,0.0001,2]
[342186331,1731570643296,-513.57258,0.0001,2]
[342186332,1731570643307,-927.04864042,0.0001,2]
[342186333,1731570643318,-4525.91019397,0.0001,2]
[342186334,1731570643342,-2996.60028079,0.0001,2]
[342186335,1731570643421,-62688.5,0.0001,2]
[342186391,1731570646268,-4478.1674008,0.0001,2]
[342186392,1731570646279,-13562.35653638,0.0001,2]
[342186393,1731570646368,-66509170.9577456,0.0001,2]
[342186394,1731570646378,-1000.0,0.0001,2]
[342186395,1731570646388,-2063.28272117,0.0001,2]
[342186396,1731570646399,-1000.0,0.0001,2]
[342186397,1731570646408,-1000.0,0.0001,2]
[342186398,1731570646418,-249604.58194524,0.0001,2]
[342186399,1731570646427,-6554312.36770919,0.0001,2]
[342186400,1731570646439,-12291759.4087124,0.0001,2]
[342186408,1731571389650,1856.663145,0.00021,120]
[342186415,1731571749111,-165.64,8.219e-05,2]
[342186416,1731571749133,-2162.47,8.219e-05,2]
[342186417,1731571749155,-978.16,8.692e-05,2]
[342186418,1731571749176,-978.16,8.694e-05,2]
[342186419,1731571749197,-978.16,8.696e-05,2]
[342186420,1731571749218,-978.16,8.699e-05,2]
[342186421,1731571749238,-978.16,8.701e-05,2]
[342186422,1731571749259,-978.16,8.703e-05,2]
[342186423,1731571749281,-978.16,8.705e-05,2]
[342186424,1731571749302,-978.16,8.708e-05,2]
[342186425,1731571749327,-978.16,8.71e-05,2]
[342186426,1731571749350,-978.16,8.712e-05,2]
[342186427,1731571749388,-810.14156,8.715e-05,2]
[342186431,1731571767099,-167.0,8.673e-05,2]
[342186432,1731571767121,-168.01844,8.715e-05,2]
[342186433,1731571767142,-978.16,8.717e-05,2]
[342186434,1731571767163,-978.16,8.719e-05,2]
[342186435,1731571767184,-978.16,8.721e-05,2]
[342186436,1731571767204,-978.16,8.724e-05,2]
[342186437,1731571767224,-978.16,8.726e-05,2]
[342186438,1731571767245,-978.16,8.728e-05,2]
[342186439,1731571767266,-978.16,8.73e-05,2]
[342186440,1731571767286,-978.16,8.733e-05,2]
[342186441,1731571767306,-978.16,8.735e-05,2]
[342186442,1731571767328,-451.81,8.85e-05,2]
[342186443,1731571767349,-250.0,8.864e-05,2]
[342186444,1731571767369,-23222.21968314,8.973e-05,2]
[342186449,1731571832269,-1268.58,8.738e-05,2]
[342186450,1731571832278,-677.78031686,8.973e-05,2]
[342186451,1731571832287,-195.3,9.068e-05,2]
[342186452,1731571832297,-90.73966314,9.068e-05,2]
[342186453,1731571832308,-328.44728001,9.068e-05,2]
[342186454,1731571832320,-2315.19992787,9.068e-05,2]
[342186455,1731571832330,-441.16202439,9.123e-05,2]
[342186456,1731571832339,-434.63,9.145e-05,2]
[342186457,1731571832348,-408.73,9.15e-05,2]
[342186458,1731571832357,-173.16394271,9.15e-05,2]
[342186463,1731571832709,-300.0,9.177e-05,2]
[342186464,1731571832728,-173.1639427,9.178e-05,2]
[342186465,1731571832737,-966.09,9.178e-05,2]
[342186466,1731571832746,-150.0,9.178e-05,2]
[342186467,1731571832755,-150.0,9.178e-05,2]
[342186468,1731571832764,-150.0,9.178e-05,2]
[342186469,1731571832774,-150.0,9.178e-05,2]
[342186470,1731571832783,-150.0,9.178e-05,2]
[342186471,1731571832793,-150.0,9.178e-05,2]
[342186473,1731571832802,-150.0,9.178e-05,2]
[342186475,1731571832811,-150.0,9.178e-05,2]
[342186477,1731571832820,-283.36016233,9.187e-05,2]
[342186481,1731571832850,-716.63983767,9.187e-05,2]
[342186483,1731571832859,-150.0,9.19e-05,2]
[342186485,1731571832868,-150.0,9.19e-05,2]
[342186487,1731571832879,-150.0,9.19e-05,2]
[342186489,1731571832888,-150.0,9.19e-05,2]
[342186491,1731571832897,-498.14,9.221e-05,2]
[342186493,1731571832907,-250.0,9.225e-05,2]
[342186496,1731571832926,-150.0,9.229e-05,2]
[342186498,1731571832937,-967.89,9.23e-05,2]
[342186500,1731571832948,-150.0,9.23e-05,2]
[342186503,1731571832958,-150.0,9.23e-05,2]
[342186505,1731571832967,-150.0,9.23e-05,2]
[342186507,1731571832977,-362.36,9.23e-05,2]
[342186509,1731571832990,-150.0,9.23e-05,2]
[342186511,1731571833000,-432.72,9.23e-05,2]
[342186513,1731571833010,-150.0,9.23e-05,2]
[342186515,1731571833019,-150.0,9.23e-05,2]
[342186517,1731571833029,-967.89,9.23e-05,2]
[342186519,1731571833038,-432.72,9.23e-05,2]
[342186521,1731571833048,-150.0,9.23e-05,2]
[342186523,1731571833058,-967.89,9.23e-05,2]
[342186525,1731571833068,-432.72,9.23e-05,2]
[342186527,1731571833078,-150.0,9.23e-05,2]
[342186529,1731571833088,-150.0,9.23e-05,2]
[342186531,1731571833097,-164.63,9.257e-05,2]
[342186533,1731571833107,-150.0,9.26e-05,2]
[342186535,1731571833117,-665.88016233,9.26e-05,2]
[342186537,1731571833132,-302.00983767,9.26e-05,2]
[342186540,1731571833142,-150.0,9.26e-05,2]
[342186542,1731571833152,-432.72,9.26e-05,2]
[342186544,1731571833161,-150.0,9.26e-05,2]
[342186546,1731571833171,-150.39,9.26e-05,2]
[342186548,1731571833181,-1526.3,9.26e-05,2]
[342186550,1731571833191,-150.0,9.26e-05,2]
[342186552,1731571833201,-362.36,9.26e-05,2]
[342186554,1731571833211,-150.0,9.26e-05,2]
[342186556,1731571833221,-150.0,9.26e-05,2]
[342186558,1731571833231,-150.0,9.26e-05,2]
[342186560,1731571833241,-96.22016233,9.26e-05,2]
[342186562,1731571833254,-53.77983767,9.26e-05,2]
[342186564,1731571833264,-967.89,9.26e-05,2]
[342186566,1731571833274,-432.72,9.26e-05,2]
[342186567,1731571833284,-1876.08,9.327e-05,2]
[342186569,1731571833294,-1000.0,9.6e-05,2]
[342186570,1731571833304,-737.29,9.67e-05,2]
[342186572,1731571833314,-5131.4,9.67e-05,2]
[342186574,1731571833323,-150.99,9.67e-05,2]
[342186575,1731571833333,-646.11,9.67e-05,2]
[342186577,1731571833343,-5512.16620737,9.67e-05,2]
[342186578,1731571833355,-1773.87379263,9.67e-05,2]
[342186580,1731571833364,-305.32,9.67e-05,2]
[342186581,1731571833374,-4574.2277,9.9e-05,2]
[342186583,1731571833384,-2500.0,9.9e-05,2]
[342186584,1731571833394,-500.0,9.973e-05,2]
[342186586,1731571833403,-160.58599164,9.973e-05,2]
[342186588,1731571833413,-500.0,9.973e-05,2]
[342186589,1731571833422,-1000.0,9.991e-05,2]
[342186591,1731571833432,-523.954,9.992e-05,2]
[342186592,1731571833442,-3205.4773849,9.992e-05,2]
[342186594,1731571833452,-1145.5762642,9.992e-05,2]
[342186595,1731571833463,-3336.6362479,9.993e-05,2]
[342186597,1731571833477,-3467.7951109,9.993e-05,2]
[342186598,1731571833488,-3598.9539739,9.993e-05,2]
[342186600,1731571833497,-1192.4499315,9.993e-05,2]
[342186601,1731571833507,-1239.3235987,9.993e-05,2]
[342186603,1731571833518,-1286.197266,9.993e-05,2]
[342186605,1731571833529,-2163.58533584,9.999e-05,2]
[342186606,1731571833539,-198.90378657,9.999e-05,2]
[342186608,1731571833550,-47042.35322647,9.999e-05,2]
[342186610,1731571833561,-61284.72238682,0.0001,2]
[342186612,1731571833574,-212023.70279992,0.0001,2]
[342186614,1731571833585,-91107.97065753,0.0001,2]
[342186615,1731571833598,-104677.43649999,0.0001,2]
[342186617,1731571833610,-2349.99456884,0.0001,2]
[342186619,1731571833629,-220951.29288098,0.0001,2]
[342186621,1731571833641,-16151.92933004,0.0001,2]
[342186623,1731571833661,-5804.59803058,0.0001,2]
[342186625,1731571833673,-27637.3545605,0.0001,2]
[342186627,1731571833685,-8008.51950183,0.0001,2]
[342186629,1731571833697,-37779.31642581,0.0001,2]
[342186631,1731571833711,-50386.69296029,0.0001,2]
[342186633,1731571833723,-2003.00884502,0.0001,2]
[342186778,1731571839314,-1547.61,0.0001,2]
[342186779,1731571839326,-6231.19079209,0.0001,2]
[342186780,1731571839342,-13271.44771308,0.0001,2]
[342186781,1731571839364,-12921.16813474,0.0001,2]
[342186782,1731571839375,-3815.7077,0.0001,2]
[342186783,1731571839397,-982.31432916,0.0001,2]
[342186784,1731571839409,-3638.78304,0.0001,2]
[342186785,1731571839420,-6076.5528515,0.0001,2]
[342186786,1731571839443,-9103.66417307,0.0001,2]
[342186787,1731571839457,-17170.04,0.0001,2]
[342186788,1731571839469,-27624357.6408949,0.0001,2]
[342186792,1731571840229,-253.44497898,0.0001,2]
[342186793,1731571840241,-556.86577081,0.0001,2]
[342186794,1731571840283,-640.75,0.0001,2]
[342186795,1731571840294,-743.65,0.0001,2]
[342186796,1731571840391,-465.54943076,0.0001,2]
[342186797,1731571840402,-681.26488617,0.0001,2]
[342186798,1731571840414,-384.644286,0.0001,2]
[342186799,1731571840446,-3000.0,0.0001,2]
[342186800,1731571840458,-2270.97680902,0.0001,2]
[342186801,1731571840503,-369.85178351,0.0001,2]
[342186802,1731571840515,-312.3160075,0.0001,2]
[342186803,1731571840560,-3235.05720002,0.0001,2]
[342186810,1731571843272,-3051.1094628,9.9e-05,2]
[342186811,1731571843299,-1581.0973372,9.9e-05,2]
[342186812,1731571843308,-502.11901539,9.973e-05,2]
[342186813,1731571843317,-254.50603832,0.0001,2]
[342186814,1731571843329,-17871.6,0.0001,2]
[342186815,1731571843340,-19326.38991102,0.0001,2]
[342186816,1731571843352,-480.1740478,0.0001,2]
[342186817,1731571843364,-2151.55353911,0.0001,2]
[342186818,1731571843409,-18169.4,0.0001,2]
[342186819,1731571843421,-425.10734015,0.0001,2]
[342186820,1731571843464,-1968.40098272,0.0001,2]
[342186821,1731571843522,-828.6711612,0.0001,2]
[342186822,1731571843533,-1596.63463075,0.0001,2]
[342186823,1731571843544,-19649.89476024,0.0001,2]
[342186824,1731571843558,-627.59413878,0.0001,2]
[342186825,1731571843570,-5864.47339882,0.0001,2]
[342186826,1731571843645,-4529.40828722,0.0001,2]
[342186827,1731571843656,-1023.02796118,0.0001,2]
[342186828,1731571843667,-419.63774487,0.0001,2]
[342186829,1731571843677,-1603.45691161,0.0001,2]
[342186830,1731571843750,-2721893.93551662,0.0001,2]
[342186831,1731571843777,-2519.36597863,0.0001,2]
[342186832,1731571843789,-90904.45567765,0.0001,2]
[342186841,1731571846229,-150.0,9.18e-05,2]
[342186842,1731571846239,-143.00259662,9.18e-05,2]
[342186843,1731571846251,-6.99740338,9.18e-05,2]
[342186844,1731571846260,-12947.43777681,0.0001,2]
[342186845,1731571846273,-5403.12719271,0.0001,2]
[342186846,1731571846283,-1181.2890152,0.0001,2]
[342186847,1731571846296,-2036.407143,0.0001,2]
[342186848,1731571846329,-2704.89735494,0.0001,2]
[342186849,1731571846392,-749.10438779,0.0001,2]
[342186850,1731571846403,-35445.64144112,0.0001,2]
[342186851,1731571846448,-43764.20915735,0.0001,2]
[342186852,1731571846463,-3185.0733,0.0001,2]
[342186853,1731571846505,-1151.18,0.0001,2]
[342186854,1731571846561,-1356.145,0.0001,2]
[342186855,1731571846573,-829.0267344,0.0001,2]
[342186856,1731571846584,-7362.29968161,0.0001,2]
[342186857,1731571846616,-914.87722903,0.0001,2]
[342186868,1731572732134,-165.64,8.219e-05,2]
[342186869,1731572732156,-71.6886671,8.219e-05,2]
[342186893,1731572974299,-1324.8522,8.219e-05,2]
[342186915,1731573032187,-872.6291329,8.219e-05,2]
[342186916,1731573032196,-164.63,8.745e-05,2]
[342186917,1731573032206,-4105.62,8.747e-05,2]
[342186918,1731573032217,-250.0,8.766e-05,2]
[342186919,1731573032227,-249.07,8.808e-05,2]
[342186920,1731573032236,-1045.95,8.831e-05,2]
[342186921,1731573032246,-351.15,8.887e-05,2]
[342186922,1731573032255,-300.0,8.933e-05,2]
[342186923,1731573032265,-3609.224,8.946e-05,2]
[342186924,1731573032274,-250.0,9e-05,2]
[342186925,1731573032284,-1651.60354689,9e-05,2]
[342186926,1731573032294,-150.0,9.045e-05,2]
[342186927,1731573032306,-1852.42,9.046e-05,2]
[342186928,1731573032316,-23900.0,9.046e-05,2]
[342186929,1731573032325,-1000.0,9.094e-05,2]
[342186930,1731573032335,-452.29,9.115e-05,2]
[342186931,1731573032344,-150.0,9.178e-05,2]
[342186932,1731573032353,-164.91,9.265e-05,2]
[342186933,1731573032362,-304.28,9.278e-05,2]
[342186934,1731573032371,-300.0,9.278e-05,2]
[342186935,1731573032380,-150.0,9.278e-05,2]
[342186936,1731573032390,-150.0,9.278e-05,2]
[342186937,1731573032400,-150.0,9.278e-05,2]
[342186938,1731573032410,-150.0,9.378e-05,2]
[342186939,1731573032419,-150.0,9.378e-05,2]
[342186940,1731573032429,-363.49,9.53e-05,2]
[342186941,1731573032438,-150.0,9.578e-05,2]
[342186942,1731573032447,-150.0,9.578e-05,2]
[342186943,1731573032456,-150.0,9.578e-05,2]
[342186944,1731573032465,-150.0,9.578e-05,2]
[342186945,1731573032474,-825.4145,9.8e-05,2]
[342186946,1731573032483,-1797.9768,9.893e-05,2]
[342186947,1731573032493,-3073.0795,9.893e-05,2]
[342186948,1731573032502,-3178.6936,9.899e-05,2]
[342186949,1731573032511,-1000.0,9.9e-05,2]
[342186950,1731573032520,-13524.3419495,9.9e-05,2]
[342186951,1731573032531,-28598.5359505,9.9e-05,2]
[342186952,1731573032541,-516.9808,9.9e-05,2]
[342186953,1731573032554,-7738.558,9.9e-05,2]
[342186954,1731573032564,-3669.0142,9.9e-05,2]
[342186955,1731573032573,-150.0,9.9e-05,2]
[342186956,1731573032583,-576.91106688,9.9e-05,2]
[342186957,1731573032599,-4548.65,9.9e-05,2]
[342186958,1731573033316,-8943.18626434,9.9e-05,2]
[342186959,1731573033328,-16206.10036878,9.9e-05,2]
[342186960,1731573033338,-2097.5942077,9.9e-05,2]
[342187052,1731573037502,-28883.2206923,9.9e-05,2]
[342187053,1731573037511,-3899.2832,9.9e-05,2]
[342187054,1731573037520,-500.0,9.9e-05,2]
[342187055,1731573037530,-200.0,9.9e-05,2]
[342187056,1731573037539,-70070.00391318,9.9e-05,2]
[342187057,1731573037549,-152.5561516,9.9e-05,2]
[342187058,1731573037559,-723.72,9.943e-05,2]
[342187059,1731573037568,-362.32,9.943e-05,2]
[342187060,1731573037577,-362.36,9.943e-05,2]
[342187061,1731573037587,-362.32,9.943e-05,2]
[342187062,1731573037597,-362.36,9.943e-05,2]
[342187063,1731573037607,-363.05,9.943e-05,2]
[342187064,1731573037617,-362.36,9.943e-05,2]
[342187065,1731573037626,-255.0,9.95e-05,2]
[342187066,1731573037635,-503.94101987,9.973e-05,2]
[342187067,1731573037645,-416.6287522,9.992e-05,2]
[342187068,1731573037654,-1128.973224,9.992e-05,2]
[342187069,1731573037664,-8212.7457079,9.992e-05,2]
[342187070,1731573037673,-430.8449536,9.993e-05,2]
[342187071,1731573037682,-445.061155,9.993e-05,2]
[342187072,1731573037692,-1167.4960351,9.993e-05,2]
[342187073,1731573037702,-1206.0188462,9.993e-05,2]
[342187074,1731573037711,-8492.9809207,9.993e-05,2]
[342187075,1731573037720,-8773.2161334,9.993e-05,2]
[342187076,1731573037730,-9053.4513462,9.993e-05,2]
[342187077,1731573037739,-9333.686559,9.993e-05,2]
[342187078,1731573037748,-932.36625837,9.999e-05,2]
[342187079,1731573037758,-36353.74,9.999e-05,2]
[342187080,1731573037767,-250000.0,9.999e-05,2]
[342187081,1731573037776,-200.6204452,9.999e-05,3]
[342187082,1731573037785,-8254.99852149,9.999e-05,2]
[342187083,1731573037794,-187444.44881535,9.999e-05,2]
[342187084,1731573037807,-27206031.34486514,0.0001,2]
[342187085,1731573037830,-656.32760024,0.0001,2]
[342187086,1731573037847,-4007.2851614,0.0001,2]
[342187087,1731573037861,-18277.0812,0.0001,2]
[342187094,1731573037999,-91032.99999999,0.0001,2]
[342187096,1731573038013,-1071.64058723,0.0001,2]
[342187213,1731573039383,-1624.36,0.0001,2]
[342187215,1731573039399,-27413.22683395,0.0001,2]
[342187236,1731573039608,-48321.55263138,0.0001,2]
[342187239,1731573039620,-307.425015,0.0001,2]
[342187646,1731573043815,-1119.3861,9.999e-05,2]
[342187649,1731573043831,-1779.8791096,9.999e-05,2]
[342187651,1731573043841,-1002.11849527,0.0001,2]
[342187653,1731573043852,-34950.0,0.0001,2]
[342187656,1731573043867,-1880.44740822,0.0001,2]
[342187658,1731573043878,-5860.76055406,0.0001,2]
[342187661,1731573043897,-18237.6,0.0001,2]
[342187663,1731573043912,-35648.88153254,0.0001,2]
[342187813,1731573045406,-182467.4876906,0.0001,2]
[342187826,1731573045518,-36942.75242885,0.0001,2]
[342187828,1731573045529,-1179.040516,0.0001,2]
[342187834,1731573045576,-612.7090717,0.0001,2]
[342187837,1731573045588,-6898.529529,0.0001,2]
[342189228,1731573060384,962.78,0.000217,120]
[342190703,1731573342768,-23900.0,9.015e-05,2]
[342190704,1731573342792,-2014.984641,9.387e-05,2]
[342190705,1731573342814,-150.21,9.405e-05,2]
[342190706,1731573342836,-150.21,9.411e-05,2]
[342190707,1731573342858,-150.21,9.417e-05,2]
[342190708,1731573342880,-150.21,9.422e-05,2]
[342190709,1731573342902,-150.21,9.428e-05,2]
[342190710,1731573342924,-150.21,9.434e-05,2]
[342190711,1731573342948,-1000.0,9.434e-05,2]
[342190712,1731573342969,-150.21,9.44e-05,2]
[342190713,1731573342991,-250.0,9.441e-05,2]
[342190714,1731573343015,-150.21,9.446e-05,2]
[342190715,1731573343039,-150.21,9.452e-05,2]
[342190716,1731573343061,-150.0,9.799e-05,2]
[342190717,1731573343081,-1000.0,9.8e-05,2]
[342190718,1731573343104,-17016.8816,9.8e-05,2]
[342190719,1731573343126,-7270.8074,9.8e-05,2]
[342190720,1731573343148,-19503.6266,9.9e-05,2]
[342190721,1731573343170,-1000.0,9.9e-05,2]
[342190722,1731573343191,-2500.0,9.9e-05,2]
[342190723,1731573343213,-352.65116395,9.973e-05,2]
[342190724,1731573343234,-842.6324329,9.993e-05,2]
[342190725,1731573343257,-1779.421806,9.993e-05,2]
[342190726,1731573343281,-218.138482,9.993e-05,2]
[342190727,1731573343302,-591.1078006,9.993e-05,2]
[342190728,1731573343324,-1476.3779201,9.993e-05,2]
[342190729,1731573343346,-35832.73,9.999e-05,2]
[342190730,1731573343372,-3683860.75015345,0.0001,2]
[342190731,1731573381480,3528.18516774,0.00012,10]
[342190745,1731574105763,1000.0,0.0002,60]
[342190748,1731574158140,-2211.5,8.219e-05,2]
[342190749,1731574158162,-19489.03298,8.675e-05,2]
[342190759,1731574231934,-780.91227965,8.219e-05,2]
[342190760,1731574231947,-1320.00772035,8.219e-05,2]
[342190761,1731574231956,-4.13088716,8.675e-05,2]
[342190762,1731574231971,-680.09575,8.675e-05,2]
[342190766,1731574232356,-1533.12546743,8.675e-05,2]
[342190767,1731574232369,-450.57754012,8.675e-05,2]
[342190768,1731574232381,-1743.03737529,8.675e-05,2]
[342190769,1731574232391,-250.0,8.802e-05,2]
[342190770,1731574232401,-250.0,8.833e-05,2]
[342190771,1731574232411,-438.16,8.875e-05,2]
[342190772,1731574232421,-500.0,8.925e-05,2]
[342190773,1731574232430,-164.91,8.972e-05,2]
[342190774,1731574232440,-1000.0,8.982e-05,2]
[342190775,1731574232449,-200.0,9e-05,3]
[342190776,1731574232459,-249.07,9.017e-05,2]
[342190777,1731574232468,-1338.9,9.021e-05,2]
[342190778,1731574232478,-500.0,9.1e-05,3]
[342190779,1731574232487,-362.32,9.178e-05,2]
[342190780,1731574232496,-300.0,9.199e-05,2]
[342190781,1731574232505,-800.0,9.2e-05,3]
[342190782,1731574232515,-362.32,9.278e-05,2]
[342190783,1731574232524,-1000.0,9.3e-05,3]
[342190784,1731574232536,-362.32,9.378e-05,2]
[342190785,1731574232546,-362.32,9.378e-05,2]
[342190786,1731574232555,-1300.0,9.4e-05,3]
[342190787,1731574232564,-200.0,9.5e-05,3]
[342190788,1731574232574,-200.0,9.6e-05,3]
[342190789,1731574232583,-352.7,9.67e-05,2]
[342190790,1731574232592,-952.4,9.67e-05,2]
[342190791,1731574232601,-150.99,9.67e-05,2]
[342190792,1731574232611,-10139.69,9.67e-05,2]
[342190793,1731574232620,-329.0,9.67e-05,2]
[342190794,1731574232630,-1885.54,9.67e-05,2]
[342190795,1731574232639,-200.0,9.7e-05,3]
[342190796,1731574232648,-150.0,9.754e-05,2]
[342190797,1731574232658,-169.66,9.755e-05,2]
[342190798,1731574232667,-2500.0,9.799e-05,2]
[342190799,1731574232677,-17973.94157798,9.8e-05,2]
[342190800,1731574232693,-1251.20906745,9.8e-05,2]
[342190801,1731574232720,-426.32802667,9.8e-05,2]
[342190802,1731574232732,-8000.0,9.8e-05,2]
[342190803,1731574232743,-4826.7871279,9.8e-05,2]
[342190804,1731574232753,-1000.0,9.8e-05,2]
[342190805,1731574232762,-200.0,9.8e-05,3]
[342190806,1731574232772,-419.163,9.899e-05,2]
[342190807,1731574232781,-13679.5,9.899e-05,2]
[342190808,1731574232795,-13679.5,9.899e-05,2]
[342190809,1731574232804,-13679.5,9.899e-05,2]
[342190810,1731574232813,-13679.5,9.899e-05,2]
[342190811,1731574232823,-13679.5,9.899e-05,2]
[342190812,1731574232832,-13679.5,9.899e-05,2]
[342190813,1731574232841,-4417.86778463,9.899e-05,2]
[342190814,1731574232852,-6801.29394007,9.899e-05,2]
[342190815,1731574232864,-1373.08667666,9.899e-05,2]
[342190816,1731574232875,-1087.25159864,9.899e-05,2]
[342190817,1731574232885,-1631.28840136,9.899e-05,2]
[342190820,1731574237566,-394.95774352,9.899e-05,2]
[342190821,1731574237578,-3649.93045815,9.899e-05,2]
[342190822,1731574237624,-8003.32339697,9.899e-05,2]
[342190823,1731574237633,-13679.5,9.899e-05,2]
[342190824,1731574237643,-13679.5,9.899e-05,2]
[342190825,1731574237652,-13679.5,9.899e-05,2]
[342190826,1731574237662,-13679.5,9.899e-05,2]
[342190827,1731574237672,-13679.5,9.899e-05,2]
[342190828,1731574237681,-13679.5,9.899e-05,2]
[342190829,1731574237691,-1153.80959303,9.899e-05,2]
[342190830,1731574237702,-1756.17897764,9.899e-05,2]
[342190831,1731574237713,-10769.51142933,9.899e-05,2]
[342190832,1731574237723,-12379.33730601,9.899e-05,2]
[342190833,1731574237734,-1300.16269399,9.899e-05,2]
[342190834,1731574237743,-2198.52264022,9.899e-05,2]
[342190835,1731574237754,-8030.49909796,9.899e-05,2]
[342190836,1731574237765,-3450.47826182,9.899e-05,2]
[342190837,1731574237774,-339.92749809,9.899e-05,2]
[342190838,1731574237789,-9701.63556486,9.899e-05,2]
[342190839,1731574237800,-3333.79975033,9.899e-05,2]
[342190840,1731574237812,-304.13718672,9.899e-05,2]
[342190841,1731574237820,-13679.5,9.899e-05,2]
[342190842,1731574237830,-13679.5,9.899e-05,2]
[342190843,1731574237839,-13679.5,9.899e-05,2]
[342190844,1731574237849,-13679.5,9.899e-05,2]
[342190845,1731574237858,-13679.5,9.899e-05,2]
[342190846,1731574237868,-13679.62234231,9.899e-05,2]
[342190847,1731574237877,-429584.8507,9.9e-05,2]
[342190848,1731574237888,-487.984,9.9e-05,2]
[342190849,1731574237898,-37889.5893,9.9e-05,2]
[342190850,1731574237907,-887.2663,9.9e-05,2]
[342190852,1731574237916,-245000.0,9.9e-05,2]
[342190854,1731574237926,-1070.5704,9.9e-05,2]
[342190856,1731574237935,-100000.0,9.9e-05,2]
[342190858,1731574237945,-500.0,9.9e-05,2]
[342190860,1731574237954,-200.0,9.9e-05,2]
[342190862,1731574237964,-1000.0,9.9e-05,2]
[342190864,1731574237973,-200.0,9.9e-05,2]
[342190866,1731574237983,-8146.6769,9.9e-05,2]
[342190868,1731574237993,-450.0,9.9e-05,2]
[342190870,1731574238002,-860.0,9.9e-05,3]
[342190872,1731574238011,-362.32,9.943e-05,2]
[342190874,1731574238020,-362.32,9.943e-05,2]
[342190876,1731574238031,-1645.72629447,9.98e-05,2]
[342190878,1731574238046,-161.93311632,9.98e-05,2]
[342190880,1731574238056,-438.16,9.984e-05,2]
[342190882,1731574238065,-45322.56892445,9.99e-05,2]
[342190884,1731574238075,-1263.7605601,9.991e-05,2]
[342190886,1731574238084,-1426.0538912,9.991e-05,2]
[342190888,1731574238094,-9673.5253397,9.991e-05,2]
[342190890,1731574238103,-1329.2774461,9.991e-05,2]
[342190892,1731574238112,-794.1048292,9.991e-05,2]
[342190894,1731574238121,-1300.7592595,9.993e-05,2]
[342190896,1731574238131,-1337.7579589,9.993e-05,2]
[342190898,1731574238141,-1374.7566583,9.993e-05,2]
[342190900,1731574238150,-1411.7553576,9.993e-05,2]
[342190902,1731574238160,-1460.7899376,9.993e-05,2]
[342190905,1731574238169,-1495.525984,9.993e-05,2]
[342190907,1731574238178,-1530.2620304,9.993e-05,2]
[342190909,1731574238187,-1564.9980768,9.993e-05,2]
[342190911,1731574238197,-9909.1546011,9.993e-05,2]
[342190913,1731574238206,-10144.7838625,9.993e-05,2]
[342190916,1731574238217,-10380.413124,9.993e-05,2]
[342190919,1731574238227,-10616.0423854,9.993e-05,2]
[342190921,1731574238237,-1361.6561966,9.993e-05,2]
[342190924,1731574238245,-1394.034947,9.993e-05,2]
[342190926,1731574238254,-1426.4136975,9.993e-05,2]
[342190928,1731574238264,-1458.7924479,9.993e-05,2]
[342190930,1731574238273,-187444.44881634,9.998e-05,2]
[342190931,1731574238282,-19199.71843866,9.999e-05,2]